fUSD/lending_fUSD_20250607
["ID","MTS","AMOUNT","RATE_DAILY","PERIOD"]
[364922673,1749301838190,-2715.12328229,0.00019625,2]
[364922674,1749301838203,-162.66484015,0.00019626,2]
[364922675,1749301838213,-162.66484013,0.00019655,2]
[364922676,1749301838223,-6571.66738866,0.00019663,2]
[364922677,1749301838567,-1879.59148705,0.00019663,2]
[364922680,1749301838583,-348.81804663,0.00019663,2]
[364922682,1749301838596,-2401.79850295,0.00019663,2]
[364922685,1749301838615,-8183.90354625,0.00019663,2]
[364922687,1749301838625,-3574.38916491,0.00019665,2]
[364922689,1749301838637,-295.04445042,0.00019665,2]
[364922691,1749301838649,-451.15504761,0.00019665,2]
[364922694,1749301838661,-2751.66441365,0.00019665,2]
[364922704,1749301840267,-12313.5258949,0.00019665,2]
[364922706,1749301840277,-19385.77897149,0.00019668,2]
[364922707,1749301840288,-19385.77897149,0.0001967,2]
[364922708,1749301840297,-19385.77897149,0.00019672,2]
[364922709,1749301840307,-500.0,0.00019673,2]
[364922710,1749301840317,-500.0,0.00019673,2]
[364922711,1749301840326,-500.0,0.00019673,2]
[364922712,1749301840335,-19385.77897149,0.00019675,2]
[364922713,1749301840346,-19385.77897149,0.00019677,2]
[364922714,1749301840369,-19385.77897149,0.00019679,2]
[364922715,1749301840379,-2815.58284374,0.0001968,2]
[364922716,1749301840390,-19385.77897149,0.00019682,2]
[364922717,1749301840401,-162.66484013,0.00019684,2]
[364922718,1749301840411,-6404.87239877,0.00019684,2]
[364922719,1749301840421,-200.40811192,0.00019684,2]
[364922720,1749301840431,-162.95459081,0.00019684,2]
[364922721,1749301840442,-35126.65907264,0.00019684,2]
[364922722,1749301840453,-19385.77897149,0.00019684,2]
[364922723,1749301840463,-2384.03173568,0.00019684,2]
[364922724,1749301840474,-207.2095282,0.00019684,2]
[364922725,1749301840484,-500.0,0.00019694,2]
[364922726,1749301840495,-457.44372043,0.00019694,2]
[364922727,1749301840506,-220.51279844,0.00019694,2]
[364922728,1749301840517,-500.0,0.00019694,2]
[364922729,1749301840527,-500.0,0.00019694,2]
[364922730,1749301840537,-500.0,0.00019694,2]
[364922731,1749301840547,-172.29653542,0.00019694,2]
[364922732,1749301840556,-500.0,0.00019694,2]
[364922733,1749301840566,-500.0,0.00019694,2]
[364922734,1749301840576,-500.0,0.00019694,2]
[364922735,1749301840586,-329.12888313,0.00019694,2]
[364922736,1749301840595,-500.0,0.00019694,2]
[364922737,1749301840605,-500.0,0.00019694,2]
[364922738,1749301840616,-500.0,0.00019694,2]
[364922739,1749301840627,-500.0,0.00019694,2]
[364922740,1749301840637,-500.0,0.00019694,2]
[364922741,1749301840647,-500.0,0.00019694,2]
[364922742,1749301840657,-500.0,0.00019694,2]
[364922743,1749301840666,-321.49960461,0.00019694,2]
[364922744,1749301840676,-500.0,0.00019694,2]
[364922745,1749301840686,-500.0,0.00019694,2]
[364922747,1749301840695,-500.0,0.00019694,2]
[364922749,1749301840705,-500.0,0.00019694,2]
[364922751,1749301840715,-500.0,0.00019694,2]
[364922753,1749301840725,-500.0,0.00019694,2]
[364922755,1749301840735,-500.0,0.00019694,2]
[364922756,1749301840745,-500.0,0.00019694,2]
[364922757,1749301840754,-500.0,0.00019694,2]
[364922758,1749301840764,-500.0,0.00019694,2]
[364922759,1749301840774,-500.0,0.00019694,2]
[364922760,1749301840784,-31507.69492701,0.00019695,2]
[364922764,1749301840798,-3953.7962,0.00019695,2]
[364922767,1749301840808,-6600.0,0.000197,7]
[364922769,1749301840818,-31507.69492701,0.00019705,2]
[364922771,1749301840828,-5226696.45549641,0.00019715,2]
[364922774,1749301840841,-538.00769881,0.00019715,2]
[364922799,1749301843434,-546045.11027793,0.00019715,2]
[364923007,1749301964581,150.0,0.00017001,2]
[364923009,1749302082510,1270.23,0.00016848,2]
[364923018,1749302755040,3893.0877188,6.94e-05,2]
[364923019,1749302755062,4780.34196892,6.94e-05,2]
[364923020,1749302755352,-151.0,0.00017111,2]
[364923021,1749302755377,-37.58243431,0.00017118,2]
[364923022,1749302757723,-113.41756569,0.00017118,2]
[364923023,1749302757748,-151.0,0.00017126,2]
[364923024,1749302757772,-36.18350346,0.00017126,2]
[364923025,1749302759233,-114.81649654,0.00017126,2]
[364923026,1749302762531,4813.67667905,8e-05,2]
[364923028,1749302785756,405.98135203,0.00013,5]
[364923029,1749302785780,420.01864797,0.00013,5]
[364923030,1749302831813,1256.15357209,0.00015,2]
[364923038,1749302877875,252.43481302,0.00015,2]
[364923052,1749302966489,324.36,0.00013699,2]
[364923064,1749303032397,-205.0,0.00017204,2]
[364923065,1749303032408,-250.0,0.00017231,2]
[364923066,1749303032418,-250.0,0.0001779,2]
[364923067,1749303032428,-150.0,0.00018059,7]
[364923068,1749303032437,-214.2860363,0.00018211,2]
[364923069,1749303032448,-35.5139637,0.00018211,2]
[364923070,1749303032458,-168.35692129,0.00018283,2]
[364923071,1749303032468,-403.13,0.00018329,2]
[364923072,1749303032477,-137.4384683,0.00018342,2]
[364923073,1749303032511,-2133.9115317,0.00018342,2]
[364923074,1749303032521,-311.4,0.00018383,2]
[364923075,1749303032531,-250.0,0.0001846,2]
[364923076,1749303032540,-150.0,0.00018518,2]
[364923077,1749303032553,-205.0,0.00018631,3]
[364923078,1749303032563,-250.0,0.00018715,2]
[364923079,1749303032572,-300.0,0.00018744,2]
[364923080,1749303032582,-300.0,0.00018744,2]
[364923081,1749303032592,-1200.0,0.00018744,2]
[364923082,1749303032601,-9580.49711201,0.00018745,2]
[364923083,1749303032617,-2123.054835,0.00018745,2]
[364923084,1749303032632,-1987.35689349,0.00018745,2]
[364923085,1749303032748,-4345.587286,0.00018745,2]
[364923097,1749303038348,-715.89999,0.00018745,2]
[364923098,1749303038406,-5147.6038835,0.00018745,2]
[364923099,1749303038416,-5914.15,0.00018769,2]
[364923100,1749303038426,-250.0,0.00018925,2]
[364923101,1749303038436,-300.0,0.00018925,2]
[364923102,1749303038445,-151.0,0.00018989,2]
[364923103,1749303038455,-250.0,0.00019,2]
[364923104,1749303038464,-103113.18791967,0.00019,2]
[364923105,1749303038473,-1000.0,0.00019045,2]
[364923106,1749303038483,-1270.23,0.00019112,2]
[364923107,1749303038492,-151.0,0.0001913,2]
[364923108,1749303038501,-1000.0,0.0001913,2]
[364923109,1749303038511,-1957.856,0.0001913,2]
[364923110,1749303038522,-151.0,0.0001913,2]
[364923111,1749303038531,-500.0,0.0001913,2]
[364923112,1749303038541,-1200.0,0.0001913,2]
[364923113,1749303038550,-500.0,0.0001913,2]
[364923114,1749303038559,-1200.0,0.0001913,2]
[364923116,1749303038574,-500.0,0.0001913,2]
[364923117,1749303038583,-1200.0,0.0001913,2]
[364923119,1749303038593,-500.0,0.0001913,2]
[364923121,1749303038603,-1200.0,0.0001913,2]
[364923123,1749303038612,-668.65185757,0.0001913,2]
[364923125,1749303038621,-500.0,0.0001913,2]
[364923127,1749303038631,-500.0,0.0001913,2]
[364923129,1749303038640,-1200.0,0.0001913,2]
[364923131,1749303038651,-500.0,0.0001913,2]
[364923133,1749303038665,-151.0,0.0001913,2]
[364923135,1749303038674,-500.0,0.0001913,2]
[364923137,1749303038683,-1200.0,0.0001913,2]
[364923139,1749303038693,-176.95133195,0.0001913,2]
[364923141,1749303038703,-500.0,0.0001913,2]
[364923143,1749303038713,-300.0,0.0001913,2]
[364923145,1749303038723,-500.0,0.0001913,2]
[364923147,1749303038732,-500.0,0.0001913,2]
[364923149,1749303038742,-151.0,0.0001913,2]
[364923151,1749303038752,-500.0,0.0001913,2]
[364923154,1749303038761,-500.0,0.0001913,2]
[364923156,1749303038771,-500.0,0.0001913,2]
[364923159,1749303038781,-500.0,0.0001913,2]
[364923162,1749303038790,-500.0,0.0001913,2]
[364923164,1749303038799,-500.0,0.0001913,2]
[364923166,1749303038810,-207.4,0.0001913,2]
[364923168,1749303038819,-500.0,0.0001913,2]
[364923170,1749303038830,-500.0,0.0001913,2]
[364923172,1749303038839,-500.0,0.0001913,2]
[364923174,1749303038849,-500.0,0.0001913,2]
[364923176,1749303038858,-500.0,0.0001913,2]
[364923178,1749303038867,-500.0,0.0001913,2]
[364923180,1749303038878,-500.0,0.0001913,2]
[364923182,1749303038887,-300.0,0.0001913,2]
[364923184,1749303038897,-500.0,0.0001913,2]
[364923186,1749303038906,-300.0,0.0001913,2]
[364923188,1749303038916,-500.0,0.0001913,2]
[364923190,1749303038926,-300.0,0.0001913,2]
[364923192,1749303038935,-500.0,0.0001913,2]
[364923194,1749303038945,-300.0,0.0001913,2]
[364923196,1749303038955,-500.0,0.0001913,2]
[364923198,1749303038964,-300.0,0.0001913,2]
[364923200,1749303038974,-500.0,0.0001913,2]
[364923202,1749303038983,-300.0,0.0001913,2]
[364923204,1749303038993,-500.0,0.0001913,2]
[364923206,1749303039003,-300.0,0.0001913,2]
[364923208,1749303039017,-500.0,0.0001913,2]
[364923210,1749303039027,-300.0,0.0001913,2]
[364923212,1749303039037,-500.0,0.0001913,2]
[364923214,1749303039046,-300.0,0.0001913,2]
[364923216,1749303039057,-300.0,0.0001913,2]
[364923218,1749303039067,-300.0,0.0001913,2]
[364923220,1749303039076,-300.0,0.0001913,2]
[364923222,1749303039087,-300.0,0.0001913,2]
[364923224,1749303039096,-300.0,0.0001913,2]
[364923226,1749303039105,-300.0,0.0001913,2]
[364923228,1749303039115,-300.0,0.0001913,2]
[364923230,1749303039125,-151.0,0.00019178,2]
[364923232,1749303039135,-204.32,0.00019178,2]
[364923234,1749303039144,-2030.296672,0.00019185,2]
[364923236,1749303039154,-25692.99185438,0.00019239,2]
[364923238,1749303039164,-2105.41764886,0.0001924,2]
[364923240,1749303039174,-2183.31810187,0.00019295,2]
[364923242,1749303039185,-2378.42632344,0.0001931,2]
[364923244,1749303039195,-165.88,0.00019339,2]
[364923246,1749303039205,-2264.10087164,0.0001935,2]
[364923248,1749303039215,-1005.82602038,0.000194,2]
[364923250,1749303039224,-43965.07917517,0.000194,2]
[364923252,1749303039234,-1000.0,0.000194,2]
[364923255,1749303039245,-2347.87260389,0.00019405,2]
[364923257,1749303039255,-2434.74389024,0.0001946,2]
[364923258,1749303039265,-2524.82941417,0.00019515,2]
[364923260,1749303039275,-2618.2481025,0.0001957,2]
[364923263,1749303039285,-195.778926,0.00019599,2]
[364923265,1749303039294,-400.0,0.000196,7]
[364923267,1749303039304,-2378.42632343,0.00019603,2]
[364923269,1749303039314,-7778.73981762,0.00019608,2]
[364923271,1749303039323,-158.86929803,0.00019608,2]
[364923273,1749303039333,-827.62432235,0.00019613,2]
[364923275,1749303039342,-500.0,0.00019615,2]
[364923277,1749303039352,-8055.1769,0.00019615,2]
[364923279,1749303039362,-1000.0,0.00019615,2]
[364923281,1749303039371,-305.0101,0.00019615,2]
[364923283,1749303039381,-2715.12328229,0.00019625,2]
[364923285,1749303039390,-681.94170818,0.00019674,2]
[364923287,1749303039401,-151.0,0.00019678,2]
[364923289,1749303039410,-151.0,0.00019678,2]
[364923291,1749303039420,-2815.58284374,0.0001968,2]
[364923293,1749303039429,-159.85641746,0.00019684,2]
[364923295,1749303039439,-1689.60473557,0.00019691,2]
[364923297,1749303039452,-150.0,0.00019699,2]
[364923299,1749303039462,-800.0,0.000197,7]
[364923301,1749303039471,-154.35895891,0.00019706,2]
[364923303,1749303039481,-500.0,0.00019706,2]
[364923327,1749303039749,-500.0,0.00019706,2]
[364923329,1749303039760,-320.2106043,0.00019706,2]
[364923330,1749303039770,-500.0,0.00019706,2]
[364923332,1749303039780,-500.0,0.00019706,2]
[364923334,1749303039790,-500.0,0.00019706,2]
[364923336,1749303039800,-500.0,0.00019706,2]
[364923338,1749303039811,-500.0,0.00019706,2]
[364923340,1749303039821,-500.0,0.00019706,2]
[364923341,1749303039831,-242.28379534,0.00019706,2]
[364923343,1749303039841,-500.0,0.00019706,2]
[364923345,1749303039851,-500.0,0.00019706,2]
[364923347,1749303039861,-500.0,0.00019706,2]
[364923349,1749303039871,-500.0,0.00019706,2]
[364923351,1749303039881,-500.0,0.00019706,2]
[364923352,1749303039891,-500.0,0.00019706,2]
[364923354,1749303039901,-500.0,0.00019706,2]
[364923356,1749303039910,-230.92581179,0.00019706,2]
[364923358,1749303039921,-500.0,0.00019706,2]
[364923360,1749303039932,-500.0,0.00019706,2]
[364923362,1749303039942,-500.0,0.00019706,2]
[364923363,1749303039951,-500.0,0.00019706,2]
[364923365,1749303039960,-500.0,0.00019706,2]
[364923367,1749303039970,-500.0,0.00019706,2]
[364923369,1749303039979,-500.0,0.00019706,2]
[364923371,1749303039989,-500.0,0.00019706,2]
[364923373,1749303039998,-479.59865674,0.00019706,2]
[364923375,1749303040008,-500.0,0.00019706,2]
[364923376,1749303040017,-251113.7781847,0.00019707,2]
[364923378,1749303040027,-15223.9415983,0.00019708,2]
[364923380,1749303040036,-8340.089385,0.00019708,2]
[364923382,1749303040046,-2000.0,0.00019715,2]
[364923384,1749303040056,-200.0,0.00019715,2]
[364923386,1749303040066,-156.587,0.00019726,2]
[364923387,1749303040076,-1089.87420965,0.00019735,2]
[364923389,1749303040085,-500.0,0.00019773,2]
[364923391,1749303040094,-500.0,0.00019773,2]
[364923393,1749303040104,-500.0,0.00019773,2]
[364923395,1749303040113,-500.0,0.00019773,2]
[364923396,1749303040122,-369.89447705,0.00019773,2]
[364923398,1749303040132,-500.0,0.00019773,2]
[364923400,1749303040142,-500.0,0.00019773,2]
[364923402,1749303040151,-500.0,0.00019773,2]
[364923403,1749303040161,-500.0,0.00019773,2]
[364923405,1749303040171,-1300.0,0.000198,7]
[364923407,1749303040180,-10640.0,0.00019863,2]
[364923409,1749303040190,-179.42905807,0.0001987,2]
[364923411,1749303040199,-1500.43520899,0.00019884,2]
[364923413,1749303040209,-5000.0,0.000199,2]
[364923415,1749303040219,-1570.41089238,0.000199,2]
[364923417,1749303040229,-761.05550996,0.000199,3]
[364923419,1749303040238,-1700.0,0.000199,7]
[364923422,1749303040247,-11246.90207882,0.000199,7]
[364923425,1749303040257,-200.0,0.00019912,2]
[364923428,1749303040266,-500.0123149,0.0001995,2]
[364923430,1749303040275,-514.0,0.0001997,2]
[364923433,1749303040285,-500.0,0.00019973,2]
[364923436,1749303040294,-159.80562836,0.00019973,2]
[364923439,1749303040303,-500.0,0.00019973,2]
[364923442,1749303040313,-2976.79392012,0.00019985,2]
[364923443,1749303040323,-500.0,0.00019988,2]
[364923446,1749303040332,-500.0,0.00019988,2]
[364923449,1749303040341,-500.0,0.00019988,2]
[364923452,1749303040351,-150.0,0.00019988,2]
[364923455,1749303040360,-500.0,0.00019988,2]
[364923458,1749303040370,-1414.0,0.00019988,2]
[364923461,1749303040380,-3525.0,0.00019988,2]
[364923463,1749303040391,-150.0,0.00019988,2]
[364923466,1749303040401,-150.0,0.00019988,2]
[364923469,1749303040410,-500.0,0.00019988,2]
[364923472,1749303040420,-150.95,0.0001999,2]
[364923475,1749303040430,-150.95,0.0001999,2]
[364923478,1749303040439,-150.95,0.0001999,2]
[364923481,1749303040449,-150.95,0.0001999,2]
[364923484,1749303040459,-150.95,0.0001999,2]
[364923487,1749303040468,-150.95,0.0001999,2]
[364923489,1749303040478,-150.95,0.0001999,2]
[364923492,1749303040488,-189.62455837,0.0001999,2]
[364923495,1749303040497,-155.0,0.00019995,2]
[364923498,1749303040507,-151.0,0.00019996,2]
[364923501,1749303040517,-151.0,0.00019996,2]
[364923504,1749303040527,-278.177846,0.00019996,2]
[364923508,1749303040537,-278.177846,0.00019996,2]
[364923510,1749303040547,-151.0,0.00019996,2]
[364923512,1749303040557,-288.433084,0.00019996,2]
[364923513,1749303040566,-288.433084,0.00019996,2]
[364923515,1749303040577,-151.0,0.00019996,2]
[364923517,1749303040586,-235.739254,0.00019996,2]
[364923520,1749303040596,-235.739254,0.00019996,2]
[364923523,1749303040606,-151.0,0.00019996,2]
[364923526,1749303040615,-151.0,0.00019996,2]
[364923529,1749303040624,-151.0,0.00019996,2]
[364923531,1749303040633,-151.0,0.00019996,2]
[364923534,1749303040643,-294.165876,0.00019996,2]
[364923537,1749303040654,-294.165876,0.00019996,2]
[364923540,1749303040668,-238.43857337,0.00019999,2]
[364923543,1749303040678,-300.0,0.00019999,2]
[364923546,1749303040687,-300.0,0.00019999,2]
[364923549,1749303040697,-11470.2023042,0.00019999,2]
[364923551,1749303040708,-1193.400756,0.00019999,2]
[364923554,1749303040717,-1193.400756,0.00019999,2]
[364923557,1749303040727,-151.0,0.00019999,2]
[364923560,1749303040737,-151.0,0.00019999,2]
[364923562,1749303040746,-151.0,0.00019999,2]
[364923565,1749303040756,-363.53,0.00019999,2]
[364923567,1749303040765,-1072.86784444,0.00019999,5]
[364923570,1749303040775,-1063.85721617,0.0002,2]
[364923573,1749303040785,-210.73,0.0002,2]
[364923576,1749303040794,-294294.69341741,0.0002,2]
[364923579,1749303040803,-151344.42338615,0.0002,2]
[364923582,1749303040813,-26907.04836834,0.0002,2]
[364923620,1749303041003,-1671.5480584,0.0002,2]
[364923643,1749303041121,-121.62232082,0.0002,2]
[364923648,1749303041144,-24860.43921047,0.0002,2]
[364924076,1749303043686,-345.63043632,0.0002,2]
[364924089,1749303043798,-1606.33423536,0.0002,2]
[364924361,1749303046596,-300.0,0.00019999,2]
[364924363,1749303046606,-364.95,0.0002,2]
[364924365,1749303046617,-11143.16,0.0002,2]
[364924367,1749303046629,-25358.19761898,0.0002,2]
[364924369,1749303046639,-302.60253582,0.0002,2]
[364924371,1749303046650,-4324.01508625,0.0002,2]
[364924373,1749303046661,-483.3518581,0.0002,2]
[364924375,1749303046671,-50058.54389967,0.0002,4]
[364924379,1749303046696,-719.26365,0.0002,4]
[364924381,1749303046709,-768.36699413,0.0002,4]
[364925071,1749303299269,480.51348,0.00016953,2]
[364925072,1749303299292,738.47652,0.00016953,2]
[364925077,1749303612941,-152.78042401,0.00018057,2]
[364925082,1749303973063,308.14,0.00013699,2]
[364925083,1749303973401,-152.78042401,0.00017057,2]
[364925084,1749303981339,-54.21957599,0.00017057,2]
[364925085,1749303990574,192.0,0.000137,5]
[364925132,1749304114510,-152.78043,0.00017057,2]
[364925133,1749304145209,261.0,0.000133,5]
[364925134,1749304207566,5692.681046,7.945e-05,2]
[364925137,1749304231736,-2771.08872644,0.00018278,2]
[364925138,1749304231749,-2502.27926151,0.00018278,2]
[364925139,1749304231761,-4495.45522794,0.00018278,2]
[364925140,1749304231776,-6607.48588319,0.00018278,2]
[364925141,1749304231859,-476.7379184,0.00018278,2]
[364925142,1749304231871,-344.10801413,0.00018278,2]
[364925143,1749304231898,-2036.59710268,0.00018278,2]
[364925189,1749304237496,-7944.98791392,0.00018278,2]
[364925190,1749304237507,-886.44255347,0.00018306,2]
[364925192,1749304237768,-10446.78744653,0.00018306,2]
[364925193,1749304237778,-250.0,0.00018341,2]
[364925194,1749304237788,-1200.0,0.00018364,2]
[364925195,1749304237801,-216006.3877766,0.00018365,2]
[364925196,1749304237811,-6846.77,0.00018378,2]
[364925197,1749304237820,-168.07,0.00018409,2]
[364925198,1749304237830,-76091.4996833,0.00018425,2]
[364925199,1749304237839,-163.04,0.00018438,2]
[364925200,1749304237849,-341.04,0.00018443,2]
[364925201,1749304237859,-27178.74004813,0.00018458,2]
[364925202,1749304237876,-537.11,0.00018482,2]
[364925203,1749304237886,-27178.74004813,0.00018638,2]
[364925204,1749304237896,-207.0,0.00018648,4]
[364925205,1749304237906,-300.0,0.00018722,2]
[364925206,1749304237916,-15360.18568401,0.00018723,3]
[364925207,1749304237925,-224.14742301,0.00018724,2]
[364925208,1749304237935,-500.0,0.00018724,2]
[364925210,1749304237946,-500.0,0.00018724,2]
[364925212,1749304237956,-500.0,0.00018724,2]
[364925214,1749304237965,-613.15364778,0.00018724,2]
[364925216,1749304237976,-500.0,0.00018724,2]
[364925218,1749304237985,-23900.0,0.00018725,2]
[364925220,1749304237996,-3000.0,0.00018888,2]
[364925222,1749304238005,-187.37,0.00018889,2]
[364925224,1749304238015,-1000.0,0.00018978,2]
[364925226,1749304238026,-250.0,0.00019,2]
[364925228,1749304238036,-3000.0,0.000191,2]
[364925230,1749304238045,-250.0,0.00019115,2]
[364925232,1749304238058,-150.99,0.00019115,2]
[364925234,1749304238068,-271.58,0.00019115,2]
[364925236,1749304238078,-9999.99,0.00019115,2]
[364925239,1749304238088,-848.73,0.00019115,5]
[364925241,1749304238097,-999.99,0.00019115,2]
[364925243,1749304238107,-150.99,0.00019115,2]
[364925245,1749304238116,-9999.99,0.00019115,2]
[364925246,1749304238126,-1000.0,0.0001913,2]
[364925249,1749304238137,-1957.856,0.0001913,2]
[364925251,1749304238146,-151.0,0.0001913,2]
[364925253,1749304238156,-300.0,0.0001913,2]
[364925255,1749304238166,-500.0,0.0001913,2]
[364925256,1749304238176,-300.0,0.0001913,2]
[364925258,1749304238188,-500.0,0.0001913,2]
[364925261,1749304238198,-300.0,0.0001913,2]
[364925263,1749304238208,-500.0,0.0001913,2]
[364925265,1749304238219,-668.65185757,0.0001913,2]
[364925267,1749304238228,-151.0,0.0001913,2]
[364925269,1749304238238,-300.0,0.0001913,2]
[364925271,1749304238248,-500.0,0.0001913,2]
[364925273,1749304238260,-500.0,0.0001913,2]
[364925275,1749304238269,-500.0,0.0001913,2]
[364925277,1749304238280,-500.0,0.0001913,2]
[364925279,1749304238290,-588.43193075,0.0001913,2]
[364925281,1749304238300,-207.4,0.0001913,2]
[364925283,1749304238310,-500.0,0.0001913,2]
[364925285,1749304238320,-500.0,0.0001913,2]
[364925287,1749304238331,-500.0,0.0001913,2]
[364925289,1749304238341,-500.0,0.0001913,2]
[364925291,1749304238351,-500.0,0.0001913,2]
[364925294,1749304238373,-621.26511227,0.0001913,2]
[364925296,1749304238384,-151.0,0.0001913,2]
[364925298,1749304238395,-1000.0,0.00019154,2]
[364925300,1749304238405,-500.0,0.00019178,2]
[364925302,1749304238416,-500.0,0.00019178,2]
[364925304,1749304238426,-500.0,0.00019178,2]
[364925306,1749304238436,-500.0,0.00019178,2]
[364925308,1749304238446,-500.0,0.00019178,2]
[364925310,1749304238456,-500.0,0.00019178,2]
[364925312,1749304238466,-500.0,0.00019178,2]
[364925314,1749304238476,-500.0,0.00019178,2]
[364925316,1749304238485,-500.0,0.00019178,2]
[364925318,1749304238496,-500.0,0.00019178,2]
[364925320,1749304238505,-500.0,0.00019178,2]
[364925322,1749304238515,-151.0,0.00019178,2]
[364925324,1749304238525,-163.45,0.00019178,2]
[364925326,1749304238534,-1957.85600001,0.00019185,2]
[364925329,1749304238544,-2949.4276877,0.000192,2]
[364925331,1749304238554,-500.0,0.000192,2]
[364925333,1749304238564,-500.0,0.000192,2]
[364925335,1749304238574,-500.0,0.000192,2]
[364925337,1749304238583,-500.0,0.000192,2]
[364925339,1749304238593,-1218.99,0.00019216,2]
[364925341,1749304238604,-165.73,0.00019387,2]
[364925343,1749304238613,-250.0,0.00019428,2]
[364925345,1749304238623,-1000.0,0.00019503,2]
[364925347,1749304238636,-176.201034,0.00019599,2]
[364925349,1749304238646,-8902.736,0.00019607,2]
[364925351,1749304238656,-151.0,0.00019678,2]
[364925353,1749304238666,-151.0,0.00019678,2]
[364925355,1749304238676,-1000.0,0.000197,2]
[364925357,1749304238686,-689.68693525,0.00019701,2]
[364925359,1749304238696,-164.72490098,0.00019716,2]
[364925361,1749304238706,-156.587,0.00019726,2]
[364925363,1749304238715,-1000.0,0.00019748,2]
[364925365,1749304238725,-1000.0,0.00019748,2]
[364925367,1749304238735,-1000.0,0.00019748,2]
[364925369,1749304238745,-1000.0,0.00019748,2]
[364925371,1749304238755,-7000.86583584,0.00019757,2]
[364925373,1749304238764,-7000.86583584,0.00019772,2]
[364925375,1749304238774,-7000.86583584,0.00019787,2]
[364925377,1749304238784,-72716.0,0.000198,2]
[364925380,1749304238799,-7000.86583584,0.00019802,2]
[364925382,1749304238809,-7000.86583584,0.00019817,2]
[364925384,1749304238819,-7000.86583584,0.00019831,2]
[364925386,1749304238829,-200.0,0.00019839,2]
[364925388,1749304238839,-200.0,0.0001984,2]
[364925390,1749304238849,-200.0,0.0001984,2]
[364925392,1749304238859,-7000.86583584,0.00019846,2]
[364925394,1749304238869,-7000.86583584,0.00019861,2]
[364925396,1749304238879,-599.29619932,0.00019873,2]
[364925398,1749304238889,-500.0,0.00019873,2]
[364925400,1749304238899,-500.0,0.00019873,2]
[364925402,1749304238910,-500.0,0.00019873,2]
[364925404,1749304238920,-1381.88003628,0.00019873,2]
[364925437,1749304239235,-7000.86583584,0.00019876,2]
[364925440,1749304239245,-150.95,0.00019881,2]
[364925443,1749304239256,-12124.41,0.00019889,2]
[364925446,1749304239266,-249494.03062707,0.0001989,3]
[364925448,1749304239277,-50000.0,0.00019891,2]
[364925450,1749304239286,-7000.86583584,0.00019891,2]
[364925452,1749304239296,-160.30486296,0.00019892,2]
[364925454,1749304239306,-604.31030524,0.00019892,2]
[364925456,1749304239316,-268.39782792,0.00019896,2]
[364925458,1749304239327,-7547.0514858,0.00019896,2]
[364925460,1749304239336,-273.46834652,0.00019896,3]
[364925462,1749304239346,-162.95459082,0.00019896,2]
[364925464,1749304239356,-112346.4671226,0.000199,2]
[364925466,1749304239365,-176.17766557,0.000199,2]
[364925468,1749304239375,-1506.802,0.0001991,2]
[364925471,1749304239386,-500.0,0.00019973,2]
[364925474,1749304239395,-501.58070333,0.00019973,2]
[364925477,1749304239405,-500.0,0.00019973,2]
[364925480,1749304239416,-159.855648,0.00019973,2]
[364925483,1749304239426,-159.855648,0.00019973,2]
[364925487,1749304239436,-266.65153907,0.00019973,2]
[364925489,1749304239446,-159.855648,0.00019973,2]
[364925492,1749304239456,-500.0,0.00019973,2]
[364925495,1749304239466,-502.1835811,0.00019973,2]
[364925498,1749304239476,-500.0,0.00019973,2]